fUST/lending_fUST_20250530
["ID","MTS","AMOUNT","RATE_DAILY","PERIOD"]
[363027803,1748554239055,-430.0,0.00019452,2]
[363027804,1748554239065,-804.18,0.00019452,2]
[363027805,1748554239074,-430.0,0.00019452,2]
[363027806,1748554239084,-430.0,0.00019452,2]
[363027807,1748554239093,-430.0,0.00019452,2]
[363027808,1748554239102,-279.7268685,0.00019452,2]
[363027809,1748554239111,-365.37,0.00019452,2]
[363027810,1748554239121,-430.0,0.00019452,2]
[363027811,1748554239130,-430.0,0.00019452,2]
[363027812,1748554239139,-430.0,0.00019452,2]
[363027813,1748554239149,-430.0,0.00019452,2]
[363027814,1748554239158,-430.0,0.00019452,2]
[363027815,1748554239168,-7526.6,0.00019452,2]
[363027816,1748554239177,-430.0,0.00019452,2]
[363027817,1748554239187,-1275.04,0.00019452,2]
[363027818,1748554239196,-6318.4,0.00019452,2]
[363027819,1748554239206,-430.0,0.00019452,2]
[363027820,1748554239215,-430.0,0.00019452,2]
[363027821,1748554239225,-684.6,0.00019452,2]
[363027822,1748554239234,-430.0,0.00019452,2]
[363027823,1748554239244,-2518.03,0.00019452,2]
[363027824,1748554239253,-430.0,0.00019452,2]
[363027825,1748554239262,-430.0,0.00019452,2]
[363027826,1748554239272,-430.0,0.00019452,2]
[363027827,1748554239282,-430.0,0.00019452,2]
[363027828,1748554239294,-430.0,0.00019452,2]
[363027829,1748554239304,-430.0,0.00019452,2]
[363027830,1748554239313,-430.0,0.00019452,2]
[363027831,1748554239321,-430.0,0.00019452,2]
[363027832,1748554239331,-430.0,0.00019452,2]
[363027833,1748554239341,-430.0,0.00019452,2]
[363027834,1748554239351,-723.06,0.00019452,2]
[363027835,1748554239361,-914.28,0.00019452,2]
[363027836,1748554239371,-430.0,0.00019452,2]
[363027837,1748554239380,-450.0,0.00019452,2]
[363027838,1748554239389,-611.91,0.00019452,2]
[363027839,1748554239399,-430.0,0.00019452,2]
[363027840,1748554239408,-1003.82,0.00019452,2]
[363027841,1748554239418,-1162.84,0.00019452,2]
[363027842,1748554239427,-2787.47,0.00019452,2]
[363027843,1748554239436,-568.18,0.00019452,2]
[363027844,1748554239445,-456.21,0.00019452,2]
[363027845,1748554239455,-430.0,0.00019452,2]
[363027846,1748554239465,-430.0,0.00019452,2]
[363027847,1748554239475,-5347.93,0.00019452,2]
[363027848,1748554239484,-997.5,0.00019452,2]
[363027849,1748554239494,-430.0,0.00019452,2]
[363027850,1748554239503,-430.0,0.00019452,2]
[363027851,1748554239512,-1245.04,0.00019452,2]
[363027852,1748554239521,-1153.33,0.00019452,2]
[363027853,1748554239530,-430.0,0.00019452,2]
[363027854,1748554239540,-470.92,0.00019452,2]
[363027855,1748554239550,-430.0,0.00019452,2]
[363027856,1748554239559,-1267.28,0.00019452,2]
[363027857,1748554239569,-430.0,0.00019452,2]
[363027858,1748554239579,-238.76942744,0.00019452,2]
[363027859,1748554239588,-3394.88,0.00019452,2]
[363027860,1748554239598,-8018.64,0.00019452,2]
[363027861,1748554239609,-430.0,0.00019452,2]
[363027862,1748554239618,-430.0,0.00019452,2]
[363027863,1748554239628,-430.0,0.00019452,2]
[363027864,1748554239638,-8878.97,0.00019452,2]
[363027865,1748554239649,-430.0,0.00019452,2]
[363027866,1748554239659,-3637.54,0.00019452,2]
[363027867,1748554239668,-1832.73,0.00019452,2]
[363027868,1748554239677,-430.0,0.00019452,2]
[363027869,1748554239687,-2457.42,0.00019452,2]
[363027870,1748554239697,-430.0,0.00019452,2]
[363027871,1748554239706,-430.0,0.00019452,2]
[363027872,1748554239716,-430.0,0.00019452,2]
[363027873,1748554239726,-490.0,0.00019452,2]
[363027874,1748554239735,-1413.15,0.00019452,2]
[363027875,1748554239745,-2205.08,0.00019452,2]
[363027876,1748554239754,-815.38,0.00019452,2]
[363027877,1748554239764,-2469.92,0.00019452,2]
[363027878,1748554239775,-490.0,0.00019452,2]
[363027879,1748554239784,-631.57,0.00019452,2]
[363027880,1748554239794,-430.0,0.00019452,2]
[363027881,1748554239803,-334.01,0.00019452,2]
[363027882,1748554239812,-430.0,0.00019452,2]
[363027883,1748554239822,-500.0,0.00019452,2]
[363027884,1748554239831,-2181.03,0.00019452,2]
[363027885,1748554239841,-430.0,0.00019452,2]
[363027886,1748554239851,-430.0,0.00019452,2]
[363027887,1748554239861,-430.0,0.00019452,2]
[363027888,1748554239870,-430.0,0.00019452,2]
[363027889,1748554239880,-2251.1,0.00019452,2]
[363027890,1748554239889,-430.0,0.00019452,2]
[363027892,1748554239899,-538.15,0.00019452,2]
[363027893,1748554239908,-608.69,0.00019452,2]
[363027894,1748554239917,-430.0,0.00019452,2]
[363027895,1748554239927,-9605.38,0.00019452,2]
[363027896,1748554239936,-1118.53,0.00019452,2]
[363027897,1748554239946,-490.0,0.00019452,2]
[363027898,1748554239955,-430.0,0.00019452,2]
[363027900,1748554239965,-630.11,0.00019452,2]
[363027901,1748554239974,-430.0,0.00019452,2]
[363027902,1748554239983,-5182.56,0.00019452,2]
[363027903,1748554239993,-430.0,0.00019452,2]
[363027904,1748554240002,-430.0,0.00019452,2]
[363027905,1748554240011,-1156.51,0.00019452,2]
[363027906,1748554240021,-430.0,0.00019452,2]
[363027907,1748554240031,-3817.27,0.00019452,2]
[363027908,1748554240040,-430.0,0.00019452,2]
[363027909,1748554240049,-729.1,0.00019452,2]
[363027910,1748554240059,-2566.31,0.00019452,2]
[363027911,1748554240070,-430.0,0.00019452,2]
[363027912,1748554240079,-430.0,0.00019452,2]
[363027913,1748554240088,-4425.93,0.00019452,2]
[363027914,1748554240097,-430.0,0.00019452,2]
[363027915,1748554240107,-430.0,0.00019452,2]
[363027916,1748554240117,-430.0,0.00019452,2]
[363027917,1748554240127,-430.0,0.00019452,2]
[363027918,1748554240136,-510.0,0.00019452,2]
[363027919,1748554240145,-757.96,0.00019452,2]
[363027920,1748554240155,-430.0,0.00019452,2]
[363027921,1748554240164,-430.0,0.00019452,2]
[363027922,1748554240173,-430.0,0.00019452,2]
[363027924,1748554240183,-3519.59,0.00019452,2]
[363027926,1748554240192,-430.0,0.00019452,2]
[363027927,1748554240202,-430.0,0.00019452,2]
[363027929,1748554240211,-517.97,0.00019452,2]
[363027931,1748554240220,-430.0,0.00019452,2]
[363027932,1748554240230,-430.0,0.00019452,2]
[363027933,1748554240241,-430.0,0.00019452,2]
[363027934,1748554240250,-430.0,0.00019452,2]
[363027935,1748554240260,-746.37,0.00019452,2]
[363027936,1748554240269,-1117.07,0.00019452,2]
[363027937,1748554240279,-430.0,0.00019452,2]
[363027938,1748554240292,-4701.65,0.00019452,2]
[363027939,1748554240301,-982.45,0.00019452,2]
[363027941,1748554240311,-430.0,0.00019452,2]
[363027943,1748554240320,-430.0,0.00019452,2]
[363027944,1748554240331,-430.0,0.00019452,2]
[363027945,1748554240340,-500.0,0.00019473,2]
[363027946,1748554240349,-500.0,0.00019473,2]
[363027947,1748554240359,-500.0,0.00019473,2]
[363027948,1748554240372,-19669.24711225,0.000195,2]
[363027949,1748554240381,-430.0,0.00019726,2]
[363027950,1748554240391,-430.0,0.00019726,2]
[363027951,1748554240401,-296.78,0.00019726,2]
[363027952,1748554240410,-430.0,0.00019726,2]
[363027953,1748554240420,-430.0,0.00019726,2]
[363027954,1748554240429,-430.0,0.00019726,2]
[363027955,1748554240439,-523.66,0.00019726,2]
[363027956,1748554240448,-430.0,0.00019726,2]
[363027957,1748554240457,-430.0,0.00019726,2]
[363027958,1748554240470,-430.0,0.00019726,2]
[363027960,1748554240479,-906.96,0.00019726,2]
[363027962,1748554240488,-382.69,0.00019726,2]
[363027964,1748554240497,-450.0,0.00019726,2]
[363027965,1748554240506,-430.0,0.00019726,2]
[363027967,1748554240516,-430.0,0.00019726,2]
[363027968,1748554240525,-430.0,0.00019726,2]
[363027969,1748554240534,-430.0,0.00019726,2]
[363027970,1748554240544,-430.0,0.00019726,2]
[363027971,1748554240553,-567.20182568,0.00019726,2]
[363027972,1748554240562,-480.17217361,0.00019726,2]
[363027973,1748554240571,-430.0,0.00019726,2]
[363027974,1748554240580,-430.0,0.00019726,2]
[363027976,1748554240590,-430.0,0.00019726,2]
[363027978,1748554240599,-430.0,0.00019726,2]
[363027979,1748554240609,-430.0,0.00019726,2]
[363027982,1748554240714,-430.0,0.00019726,2]
[363027983,1748554240723,-430.0,0.00019726,2]
[363027984,1748554240732,-430.0,0.00019726,2]
[363027985,1748554240742,-430.0,0.00019726,2]
[363027986,1748554240751,-430.0,0.00019726,2]
[363027987,1748554240760,-430.0,0.00019726,2]
[363027988,1748554240769,-1717.32,0.00019726,2]
[363027989,1748554240779,-805.53,0.00019726,2]
[363027990,1748554240788,-485.41,0.00019726,2]
[363027991,1748554240797,-430.0,0.00019726,2]
[363027992,1748554240806,-430.0,0.00019726,2]
[363027993,1748554240815,-430.0,0.00019726,2]
[363027994,1748554240825,-1009.55,0.00019726,2]
[363027995,1748554240834,-430.0,0.00019726,2]
[363027996,1748554240844,-430.0,0.00019726,2]
[363027997,1748554240854,-430.0,0.00019726,2]
[363027998,1748554240863,-430.0,0.00019726,2]
[363027999,1748554240872,-430.0,0.00019726,2]
[363028000,1748554240881,-430.0,0.00019726,2]
[363028001,1748554240891,-510.0,0.00019726,2]
[363028002,1748554240900,-430.0,0.00019726,2]
[363028003,1748554240909,-804.18,0.00019726,2]
[363028004,1748554240918,-430.0,0.00019726,2]
[363028005,1748554240928,-430.0,0.00019726,2]
[363028006,1748554240937,-430.0,0.00019726,2]
[363028007,1748554240946,-430.0,0.00019726,2]
[363028008,1748554240955,-430.0,0.00019726,2]
[363028009,1748554240964,-430.0,0.00019726,2]
[363028010,1748554240974,-7526.6,0.00019726,2]
[363028011,1748554240983,-430.0,0.00019726,2]
[363028012,1748554240992,-1275.04,0.00019726,2]
[363028013,1748554241002,-6318.4,0.00019726,2]
[363028014,1748554241010,-430.0,0.00019726,2]
[363028015,1748554241020,-490.0,0.00019726,2]
[363028016,1748554241029,-684.6,0.00019726,2]
[363028017,1748554241039,-430.0,0.00019726,2]
[363028018,1748554241048,-2518.03,0.00019726,2]
[363028019,1748554241058,-430.0,0.00019726,2]
[363028020,1748554241067,-430.0,0.00019726,2]
[363028021,1748554241077,-430.0,0.00019726,2]
[363028022,1748554241087,-430.0,0.00019726,2]
[363028023,1748554241096,-430.0,0.00019726,2]
[363028024,1748554241105,-430.0,0.00019726,2]
[363028025,1748554241114,-430.0,0.00019726,2]
[363028026,1748554241123,-430.0,0.00019726,2]
[363028027,1748554241133,-430.0,0.00019726,2]
[363028028,1748554241142,-723.06,0.00019726,2]
[363028029,1748554241151,-914.28,0.00019726,2]
[363028030,1748554241161,-490.0,0.00019726,2]
[363028031,1748554241170,-611.91,0.00019726,2]
[363028032,1748554241180,-430.0,0.00019726,2]
[363028033,1748554241189,-1003.82,0.00019726,2]
[363028034,1748554241200,-1162.84,0.00019726,2]
[363028035,1748554241210,-2787.47,0.00019726,2]
[363028036,1748554241219,-568.18,0.00019726,2]
[363028037,1748554241229,-456.21,0.00019726,2]
[363028038,1748554241238,-430.0,0.00019726,2]
[363028039,1748554241248,-430.0,0.00019726,2]
[363028040,1748554241258,-5347.93,0.00019726,2]
[363028041,1748554241268,-997.5,0.00019726,2]
[363028042,1748554241278,-519.10495198,0.00019726,2]
[363028043,1748554241290,-430.0,0.00019726,2]
[363028044,1748554241300,-1245.04,0.00019726,2]
[363028045,1748554241309,-1153.33,0.00019726,2]
[363028046,1748554241320,-430.0,0.00019726,2]
[363028047,1748554241329,-470.92,0.00019726,2]
[363028048,1748554241339,-430.0,0.00019726,2]
[363028049,1748554241348,-1267.28,0.00019726,2]
[363028050,1748554241360,-430.0,0.00019726,2]
[363028051,1748554241371,-3394.88,0.00019726,2]
[363028052,1748554241382,-8018.64,0.00019726,2]
[363028053,1748554241391,-481.16774827,0.00019726,2]
[363028054,1748554241401,-430.0,0.00019726,2]
[363028055,1748554241411,-430.0,0.00019726,2]
[363028056,1748554241420,-430.0,0.00019726,2]
[363028057,1748554241430,-3637.54,0.00019726,2]
[363028058,1748554241439,-8878.97,0.00019726,2]
[363028059,1748554241449,-1832.73,0.00019726,2]
[363028060,1748554241458,-430.0,0.00019726,2]
[363028061,1748554241467,-2457.42,0.00019726,2]
[363028062,1748554241476,-430.0,0.00019726,2]
[363028063,1748554241485,-430.0,0.00019726,2]
[363028064,1748554241495,-430.0,0.00019726,2]
[363028065,1748554241504,-1413.15,0.00019726,2]
[363028066,1748554241514,-2205.08,0.00019726,2]
[363028067,1748554241523,-815.38,0.00019726,2]
[363028068,1748554241532,-2469.92,0.00019726,2]
[363028069,1748554241541,-631.57,0.00019726,2]
[363028070,1748554241551,-430.0,0.00019726,2]
[363028071,1748554241561,-430.0,0.00019726,2]
[363028072,1748554241571,-500.0,0.00019726,2]
[363028073,1748554241580,-2181.03,0.00019726,2]
[363028074,1748554241590,-430.0,0.00019726,2]
[363028075,1748554241599,-430.0,0.00019726,2]
[363028076,1748554241610,-570.0,0.00019726,2]
[363028077,1748554241620,-430.0,0.00019726,2]
[363028078,1748554241629,-2251.1,0.00019726,2]
[363028079,1748554241639,-538.15,0.00019726,2]
[363028080,1748554241648,-608.69,0.00019726,2]
[363028081,1748554241657,-430.0,0.00019726,2]
[363028082,1748554241667,-9605.38,0.00019726,2]
[363028083,1748554241676,-1118.53,0.00019726,2]
[363028084,1748554241686,-430.0,0.00019726,2]
[363028085,1748554241695,-630.11,0.00019726,2]
[363028086,1748554241704,-5182.56,0.00019726,2]
[363028087,1748554241713,-262.22291583,0.00019726,2]
[363028088,1748554241723,-430.0,0.00019726,2]
[363028089,1748554241732,-1156.51,0.00019726,2]
[363028090,1748554241741,-430.0,0.00019726,2]
[363028091,1748554241750,-3817.27,0.00019726,2]
[363028092,1748554241759,-378.30002943,0.00019726,2]
[363028093,1748554241769,-729.1,0.00019726,2]
[363028094,1748554241778,-2566.31,0.00019726,2]
[363028095,1748554241788,-430.0,0.00019726,2]
[363028096,1748554241798,-4425.93,0.00019726,2]
[363028097,1748554241807,-430.0,0.00019726,2]
[363028098,1748554241816,-430.0,0.00019726,2]
[363028099,1748554241826,-430.0,0.00019726,2]
[363028100,1748554241835,-430.0,0.00019726,2]
[363028101,1748554241844,-757.96,0.00019726,2]
[363028102,1748554241854,-490.0,0.00019726,2]
[363028103,1748554241863,-193.94,0.00019726,2]
[363028104,1748554241872,-242.7939397,0.00019726,2]
[363028105,1748554241882,-3519.59,0.00019726,2]
[363028106,1748554241891,-430.0,0.00019726,2]
[363028107,1748554241901,-430.0,0.00019726,2]
[363028108,1748554241910,-517.97,0.00019726,2]
[363028109,1748554241918,-430.0,0.00019726,2]
[363028110,1748554241928,-430.0,0.00019726,2]
[363028111,1748554241937,-430.0,0.00019726,2]
[363028112,1748554241947,-430.0,0.00019726,2]
[363028113,1748554241956,-746.37,0.00019726,2]
[363028114,1748554241965,-1117.07,0.00019726,2]
[363028115,1748554241974,-430.0,0.00019726,2]
[363028116,1748554241983,-4701.65,0.00019726,2]
[363028117,1748554241992,-982.45,0.00019726,2]
[363028118,1748554242002,-430.0,0.00019726,2]
[363028119,1748554242011,-450.0,0.00019726,2]
[363028120,1748554242020,-252.47,0.00019792,2]
[363028121,1748554242030,-777.41868803,0.00019891,2]
[363028122,1748554242039,-572.078714,0.00019973,2]
[363028123,1748554242048,-514.1178007,0.00019973,2]
[363028124,1748554242057,-430.0,0.0002,2]
[363028125,1748554242067,-430.0,0.0002,2]
[363028126,1748554242076,-430.0,0.0002,2]
[363028127,1748554242086,-430.0,0.0002,2]
[363028128,1748554242095,-169.50470734,0.0002,2]
[363028129,1748554242104,-523.66,0.0002,2]
[363028130,1748554242113,-430.0,0.0002,2]
[363028131,1748554242122,-430.0,0.0002,2]
[363028132,1748554242131,-430.0,0.0002,2]
[363028133,1748554242140,-906.96,0.0002,2]
[363028134,1748554242150,-430.0,0.0002,2]
[363028135,1748554242159,-490.0,0.0002,2]
[363028136,1748554242168,-570.0,0.0002,2]
[363028137,1748554242178,-430.0,0.0002,2]
[363028138,1748554242187,-430.0,0.0002,2]
[363028139,1748554242196,-430.0,0.0002,2]
[363028140,1748554242206,-430.0,0.0002,2]
[363028141,1748554242215,-430.0,0.0002,2]
[363028142,1748554242224,-430.0,0.0002,2]
[363028143,1748554242233,-430.0,0.0002,2]
[363028144,1748554242243,-530.0,0.0002,2]
[363028145,1748554242252,-154.61416048,0.0002,2]
[363028146,1748554242261,-430.0,0.0002,2]
[363028147,1748554242270,-1717.32,0.0002,2]
[363028148,1748554242280,-2842.0,0.0002,2]
[363028149,1748554242294,-805.53,0.0002,2]
[363028150,1748554242303,-485.41,0.0002,2]
[363028151,1748554242313,-490.0,0.0002,2]
[363028152,1748554242322,-472.07231314,0.0002,2]
[363028153,1748554242332,-430.0,0.0002,2]
[363028154,1748554242342,-1009.55,0.0002,2]
[363028155,1748554242351,-430.0,0.0002,2]
[363028156,1748554242361,-430.0,0.0002,2]
[363028157,1748554242371,-430.0,0.0002,2]
[363028158,1748554242380,-430.0,0.0002,2]
[363028159,1748554242389,-430.0,0.0002,2]
[363028160,1748554242399,-430.0,0.0002,2]
[363028161,1748554242408,-804.18,0.0002,2]
[363028162,1748554242417,-558.57683958,0.0002,2]
[363028163,1748554242426,-550.0,0.0002,2]
[363028164,1748554242436,-430.0,0.0002,2]
[363028165,1748554242446,-430.0,0.0002,2]
[363028166,1748554242455,-430.0,0.0002,2]
[363028167,1748554242464,-7526.6,0.0002,2]
[363028168,1748554242473,-430.0,0.0002,2]
[363028169,1748554242483,-1275.04,0.0002,2]
[363028170,1748554242492,-6318.4,0.0002,2]
[363028171,1748554242501,-430.0,0.0002,2]
[363028172,1748554242511,-684.6,0.0002,2]
[363028173,1748554242520,-2518.03,0.0002,2]
[363028174,1748554242529,-430.0,0.0002,2]
[363028175,1748554242538,-430.0,0.0002,2]
[363028176,1748554242547,-430.0,0.0002,2]
[363028177,1748554242556,-430.0,0.0002,2]
[363028178,1748554242565,-430.0,0.0002,2]
[363028179,1748554242575,-430.0,0.0002,2]
[363028180,1748554242584,-487.06,0.0002,2]
[363028181,1748554242594,-430.0,0.0002,2]
[363028182,1748554242693,-430.0,0.0002,2]
[363028183,1748554242703,-723.06,0.0002,2]
[363028184,1748554242713,-914.28,0.0002,2]
[363028185,1748554242722,-611.91,0.0002,2]
[363028186,1748554242731,-430.0,0.0002,2]
[363028187,1748554242742,-1003.82,0.0002,2]
[363028188,1748554242751,-1162.84,0.0002,2]
[363028189,1748554242760,-2787.47,0.0002,2]
[363028190,1748554242770,-568.18,0.0002,2]
[363028191,1748554242779,-456.21,0.0002,2]
[363028192,1748554242788,-430.0,0.0002,2]
[363028193,1748554242796,-430.0,0.0002,2]
[363028194,1748554242806,-5347.93,0.0002,2]
[363028195,1748554242816,-997.5,0.0002,2]
[363028196,1748554242825,-430.0,0.0002,2]
[363028197,1748554242834,-1245.04,0.0002,2]
[363028198,1748554242844,-1153.33,0.0002,2]
[363028199,1748554242853,-430.0,0.0002,2]
[363028200,1748554242863,-470.92,0.0002,2]
[363028201,1748554242872,-430.0,0.0002,2]
[363028202,1748554242881,-1362.54240735,0.0002,30]
[363028204,1748554242891,-1267.28,0.0002,2]
[363028206,1748554242900,-430.0,0.0002,2]
[363028207,1748554242909,-3394.88,0.0002,2]
[363028208,1748554242918,-8018.64,0.0002,2]
[363028209,1748554242928,-430.0,0.0002,2]
[363028210,1748554242937,-430.0,0.0002,2]
[363028211,1748554242947,-3637.54,0.0002,2]
[363028212,1748554242956,-8878.97,0.0002,2]
[363028213,1748554242965,-1832.73,0.0002,2]
[363028214,1748554242975,-430.0,0.0002,2]
[363028215,1748554242984,-2457.42,0.0002,2]
[363028216,1748554242994,-430.0,0.0002,2]
[363028217,1748554243003,-430.0,0.0002,2]
[363028218,1748554243013,-1413.15,0.0002,2]
[363028219,1748554243022,-2205.08,0.0002,2]
[363028220,1748554243031,-815.38,0.0002,2]
[363028221,1748554243041,-2469.92,0.0002,2]
[363028222,1748554243052,-631.57,0.0002,2]
[363028223,1748554243062,-470.0,0.0002,2]
[363028224,1748554243071,-490.0,0.0002,2]
[363028225,1748554243080,-500.0,0.0002,2]
[363028226,1748554243090,-2181.03,0.0002,2]
[363028228,1748554243099,-430.0,0.0002,2]
[363028230,1748554243109,-490.0,0.0002,2]
[363028232,1748554243119,-430.0,0.0002,2]
[363028234,1748554243128,-2251.1,0.0002,2]
[363028235,1748554243136,-538.15,0.0002,2]
[363028237,1748554243146,-608.69,0.0002,2]
[363028238,1748554243155,-221.85019815,0.0002,2]
[363028239,1748554243165,-9605.38,0.0002,2]
[363028240,1748554243174,-1118.53,0.0002,2]
[363028241,1748554243184,-430.0,0.0002,2]
[363028242,1748554243193,-630.11,0.0002,2]
[363028243,1748554243203,-5182.56,0.0002,2]
[363028244,1748554243212,-430.0,0.0002,2]
[363028245,1748554243221,-1156.51,0.0002,2]
[363028246,1748554243231,-430.0,0.0002,2]
[363028247,1748554243240,-3817.27,0.0002,2]
[363028248,1748554243249,-729.1,0.0002,2]
[363028249,1748554243259,-2566.31,0.0002,2]
[363028250,1748554243268,-430.0,0.0002,2]
[363028251,1748554243278,-430.0,0.0002,2]
[363028252,1748554243291,-4425.93,0.0002,2]
[363028253,1748554243301,-430.0,0.0002,2]
[363028254,1748554243310,-430.0,0.0002,2]
[363028255,1748554243319,-430.0,0.0002,2]
[363028256,1748554243330,-757.96,0.0002,2]
[363028257,1748554243339,-3519.59,0.0002,2]
[363028258,1748554243348,-430.0,0.0002,2]
[363028259,1748554243359,-430.0,0.0002,2]
[363028260,1748554243373,-517.97,0.0002,2]
[363028261,1748554243386,-430.0,0.0002,2]
[363028262,1748554243395,-430.0,0.0002,2]
[363028263,1748554243406,-430.0,0.0002,2]
[363028264,1748554243415,-430.0,0.0002,2]
[363028265,1748554243425,-746.37,0.0002,2]
[363028266,1748554243434,-1117.07,0.0002,2]
[363028267,1748554243444,-430.0,0.0002,2]
[363028268,1748554243454,-4701.65,0.0002,2]
[363028269,1748554243464,-982.45,0.0002,2]
[363028270,1748554243473,-430.0,0.0002,2]
[363028271,1748554243482,-229.26895353,0.00020058,2]
[363028272,1748554243492,-160.0,0.00020058,2]
[363028273,1748554243501,-842.5625,0.00020058,2]
[363028274,1748554243510,-423.31762986,0.00020066,2]
[363028275,1748554243519,-160.0,0.00020066,2]
[363028276,1748554243528,-160.0,0.00020066,2]
[363028277,1748554243537,-160.0,0.00020066,2]
[363028278,1748554243547,-212.70147903,0.00020066,2]
[363028279,1748554243556,-12660.97845086,0.00020066,2]
[363028280,1748554243566,-160.0,0.00020066,2]
[363028281,1748554243575,-160.0,0.00020071,2]
[363028282,1748554243585,-160.0,0.00020071,2]
[363028283,1748554243595,-727.6530668,0.0002011,2]
[363028284,1748554243604,-364.176416,0.0002011,2]
[363028286,1748554243614,-610.913588,0.00020187,2]
[363028287,1748554243623,-430.0,0.00020273,2]
[363028288,1748554243632,-430.0,0.00020273,2]
[363028290,1748554243641,-430.0,0.00020273,2]
[363028291,1748554243650,-523.66,0.00020273,2]
[363028293,1748554243659,-430.0,0.00020273,2]
[363028295,1748554243669,-430.0,0.00020273,2]
[363028297,1748554243678,-430.0,0.00020273,2]
[363028299,1748554243688,-906.96,0.00020273,2]
[363028300,1748554243697,-430.0,0.00020273,2]
[363028301,1748554243707,-490.0,0.00020273,2]
[363028302,1748554243716,-430.0,0.00020273,2]
[363028303,1748554243725,-430.0,0.00020273,2]
[363028304,1748554243734,-430.0,0.00020273,2]
[363028305,1748554243743,-430.0,0.00020273,2]
[363028306,1748554243753,-430.0,0.00020273,2]
[363028307,1748554243762,-430.0,0.00020273,2]
[363028308,1748554243771,-430.0,0.00020273,2]
[363028309,1748554243780,-1717.32,0.00020273,2]
[363028310,1748554243789,-805.53,0.00020273,2]
[363028311,1748554243799,-485.41,0.00020273,2]
[363028312,1748554243808,-430.0,0.00020273,2]
[363028313,1748554243817,-1009.55,0.00020273,2]
[363028314,1748554243826,-430.0,0.00020273,2]
[363028315,1748554243835,-430.0,0.00020273,2]
[363028316,1748554243844,-430.0,0.00020273,2]
[363028317,1748554243854,-430.0,0.00020273,2]
[363028318,1748554243863,-430.0,0.00020273,2]
[363028319,1748554243873,-430.0,0.00020273,2]
[363028320,1748554243882,-804.18,0.00020273,2]
[363028321,1748554243891,-430.0,0.00020273,2]
[363028322,1748554243901,-430.0,0.00020273,2]
[363028323,1748554243910,-430.0,0.00020273,2]
[363028324,1748554243919,-7526.6,0.00020273,2]
[363028325,1748554243929,-430.0,0.00020273,2]
[363028326,1748554243938,-1275.04,0.00020273,2]
[363028327,1748554243948,-6318.4,0.00020273,2]
[363028328,1748554243957,-430.0,0.00020273,2]
[363028329,1748554243966,-684.6,0.00020273,2]
[363028330,1748554243976,-2518.03,0.00020273,2]
[363028331,1748554243985,-430.0,0.00020273,2]